bitfinex-derivatives/quotes_ETHF0:USTF0_20260209
["timestamp","ask_amount","ask_price","bid_price","bid_amount"]
[1770630277563,6.42561636,2040.5,2039.8,4.42997577]
[1770630277766,6.42561636,2040.5,2039.9,4.42997577]
[1770630279073,6.42561636,2040.5,2040.0,4.42997577]
[1770630279275,6.40176737,2040.3,2039.8,2.01633761]
[1770630279475,6.40176737,2040.3,2039.9,4.43319494]
[1770630279772,6.40176737,2040.3,2040.0,4.43319494]
[1770630279972,6.41103418,2040.1,2039.7,1.95097743]
[1770630280169,6.41103418,2040.1,2039.8,4.4332451]
[1770630280380,6.41103418,2040.1,2039.9,4.4332451]
[1770630280568,6.41103418,2040.1,2039.7,0.0058936]
[1770630280761,6.41103418,2040.1,2039.8,4.43330298]
[1770630280968,6.41103418,2040.1,2039.9,4.43330298]
[1770630281171,6.41103418,2040.1,2039.7,1.9164656]
[1770630281471,14.9595078,2040.0,2039.8,4.4332396]
[1770630281670,6.21128964,2040.7,2039.9,4.4332396]
[1770630281871,6.21128964,2040.6,2040.0,4.4332396]
[1770630282066,6.21128964,2040.6,2039.9,6.41750949]
[1770630284478,8.5467776,2040.5,2040.1,6.41750949]
[1770630284678,6.21128964,2040.4,2040.0,0.24531]
[1770630285178,15.50178839,2040.3,2040.0,7.29782263]
[1770630285479,6.95501079,2040.3,2040.0,7.29782263]
[1770630285678,15.50178839,2040.3,2040.0,7.29782263]
[1770630286177,8.0185876,2040.3,2040.0,7.29782263]
[1770630286380,6.95501079,2040.5,2040.0,7.29782263]
[1770630286678,14.97359839,2040.4,2040.0,7.29782263]
[1770630286878,6.95501079,2040.4,2040.0,7.29782263]
[1770630288174,6.9416076,2040.3,2040.0,7.29782263]
[1770630288382,6.95501079,2040.5,2040.0,7.29782263]
[1770630288777,13.29709839,2040.4,2040.0,7.29782263]
[1770630288977,6.95501079,2040.4,2040.0,7.29782263]
[1770630289174,6.95501079,2040.8,2040.3,7.05251263]
[1770630289570,6.95501079,2040.8,2040.1,7.05251263]
[1770630289775,0.00579427,2040.9,2040.1,7.05251263]
[1770630289776,6.95501079,2040.6,2040.1,7.05251263]
[1770630290178,5.7056376,2040.7,2040.1,7.05251263]
[1770630290179,4.5995276,2040.5,2040.2,7.05251263]
[1770630290484,6.95501079,2040.7,2040.4,0.24526]
[1770630291069,6.95501079,2040.7,2040.4,7.29777263]
[1770630291280,6.95501079,2040.7,2040.4,0.24526]
[1770630291480,6.95501079,2040.8,2040.4,7.29777263]
[1770630291875,6.95501079,2040.8,2040.0,5.87011967]
[1770630292082,6.95501079,2040.8,2040.0,7.05251263]
[1770630292375,6.95501079,2040.8,2039.9,0.24532]
[1770630293883,6.95501079,2040.8,2039.9,7.29783263]
[1770630295080,6.95501079,2040.8,2039.9,0.24532]
[1770630296186,6.95501079,2040.8,2039.9,7.29783263]
[1770630296484,6.95501079,2040.8,2040.2,7.05251263]
[1770630297089,6.95501079,2040.8,2040.3,7.29778263]
[1770630298975,4.27e-06,2040.9,2040.4,7.05251263]
[1770630299192,6.95501506,2040.9,2040.3,0.24527]
[1770630299988,6.95501506,2040.9,2040.3,7.29778263]
[1770630300188,6.95501506,2040.9,2040.3,11.69640603]
[1770630302190,6.95501506,2040.9,2040.4,7.05251263]
[1770630302389,6.95501506,2040.9,2040.3,11.69640603]
[1770630302691,6.95501506,2040.9,2040.4,7.05251263]
[1770630303190,6.95501506,2040.9,2040.3,11.69640603]
[1770630303492,6.95501506,2040.9,2040.3,0.24527]
[1770630303684,6.95501506,2040.9,2039.7,0.2512236]
[1770630303990,6.95501506,2040.9,2039.7,7.30373623]
[1770630305190,6.95501079,2040.7,2039.7,7.30373623]
[1770630305793,6.95501079,2040.7,2039.4,12.9226323]
[1770630305989,6.95501079,2040.7,2039.2,7.29791263]
[1770630306792,6.95501079,2040.7,2039.2,7.30313355]
[1770630309692,6.95501079,2040.7,2039.5,7.05251263]
[1770630310088,6.95501079,2040.7,2039.4,0.24538]
[1770630310284,6.95501079,2040.7,2039.4,7.29789263]
[1770630310591,6.95501079,2040.5,2039.4,7.29789263]
[1770630311687,6.95501506,2040.9,2040.3,7.05251263]
[1770630313691,6.95501506,2040.9,2040.2,0.24528]
[1770630313692,4.27e-06,2040.9,2040.5,7.05251263]
[1770630313891,4.27e-06,2040.9,2040.1,7.05251263]
[1770630314294,4.27e-06,2040.9,2039.9,13.29076795]
[1770630314492,4.27e-06,2040.9,2039.9,7.05251263]
[1770630315789,4.27e-06,2040.9,2039.8,0.24533]
[1770630315994,6.7700119,2040.9,2039.5,6.71252627]
[1770630316697,6.77000763,2040.8,2039.5,6.71252627]
[1770630317698,6.77000763,2040.6,2039.5,6.71252627]
[1770630323301,6.95888695,2040.4,2039.5,6.71252627]
[1770630324597,6.95888695,2040.4,2039.4,6.51782755]
[1770630324788,6.95888695,2040.4,2039.3,6.51782755]
[1770630326902,6.95888695,2040.4,2039.5,6.51782755]
[1770630327099,6.95888695,2040.4,2039.7,6.51782755]
[1770630334906,6.95888695,2040.4,2039.6,3.1726054]
[1770630335309,6.95888695,2040.4,2039.7,6.51782755]
[1770630335498,40.8,2040.3,2039.7,6.51782755]
[1770630335703,6.95888695,2040.2,2039.7,6.51782755]
[1770630336308,47.75888695,2040.3,2039.7,6.51782755]
[1770630336505,6.95888695,2040.8,2040.0,0.24531]
[1770630337113,6.95888695,2040.6,2040.0,0.24531]
[1770630338009,40.8,2040.7,2040.0,6.76313755]
[1770630338209,4.27e-06,2040.9,2040.2,0.24528]
[1770630338809,6.95889122,2040.9,2040.2,0.24528]
[1770630340515,6.95889122,2040.9,2040.2,6.76310755]
[1770630344420,4.27e-06,2040.9,2040.3,6.51782755]
[1770630344817,4.27e-06,2040.9,2040.4,6.76308755]
[1770630345017,6.95888695,2041.0,2040.4,3.1725054]
[1770630345217,6.95888695,2041.0,2040.4,0.24526]
[1770630346015,6.96248086,2041.0,2040.4,0.24526]
[1770630348426,6.96248086,2041.0,2040.1,6.43706609]
[1770630350328,6.96248086,2041.0,2040.0,6.23875793]
[1770630354833,6.96248086,2041.0,2040.0,9.16600333]
[1770630356726,6.96248086,2041.0,2040.0,2.9272454]
[1770630356930,6.96248086,2041.0,2039.9,9.18851514]
[1770630357537,6.96248086,2041.0,2040.0,5.98274551]
[1770630360234,6.96248086,2041.0,2040.2,5.83095643]
[1770630361731,6.96248086,2041.0,2040.4,5.73375408]
[1770630361940,6.6512124,2041.0,2040.6,5.73375408]
[1770630362341,6.64761849,2041.2,2040.8,5.70143277]
[1770630362644,6.64761849,2041.3,2040.8,5.70143277]
[1770630362844,6.64761849,2041.3,2040.7,0.24522]
[1770630363145,6.64761849,2041.2,2040.7,0.24522]
[1770630363443,6.65159877,2041.2,2040.7,0.2509411]
[1770630366244,6.65159877,2041.2,2040.3,2.9272454]
[1770630366543,6.65159877,2041.2,2040.3,5.47272218]
[1770630367047,6.64761849,2041.1,2040.1,5.46734977]
[1770630367244,6.64761849,2041.1,2040.3,5.43587721]
[1770630367545,6.64761849,2041.1,2040.1,3.17600213]
[1770630367741,6.64761849,2041.1,2040.1,5.68463394]
[1770630369250,6.64761849,2041.1,2040.5,5.36821331]
[1770630370543,6.64761849,2041.1,2040.4,5.64122664]
[1770630371840,6.64761849,2041.1,2040.5,5.36124689]
[1770630373549,6.64761849,2041.1,2040.6,5.2946725]
[1770630373945,6.65159877,2041.2,2040.6,5.2946725]
[1770630374145,0.00398028,2041.2,2040.6,5.2946725]
[1770630374350,6.65159877,2041.2,2040.6,5.2946725]
[1770630374752,6.65159877,2041.2,2040.5,2.9272454]
[1770630374753,0.00398028,2041.2,2040.8,5.25904346]
[1770630375051,47.44761849,2041.4,2040.8,5.25904346]
[1770630375240,46.92874958,2041.4,2040.8,5.25904346]
[1770630375954,46.93442241,2041.4,2040.8,5.25904346]
[1770630376151,0.00567283,2041.4,2040.8,5.25904346]
[1770630376553,6.12874958,2041.5,2040.8,5.25904346]
[1770630376949,31.7,2041.8,2041.0,5.205061]
[1770630376952,6.12874958,2041.6,2041.0,5.205061]
[1770630377554,6.13331041,2041.6,2041.0,5.205061]
[1770630379756,5.65272266,2042.0,2041.4,5.1431583]
[1770630380055,5.65272266,2042.0,2041.3,5.3883083]
[1770630380850,5.65618374,2042.0,2041.3,5.3883083]
[1770630381756,0.00346108,2042.0,2041.3,5.3883083]
[1770630381957,40.8,2042.2,2041.6,5.30258266]
[1770630382158,5.65272266,2042.5,2041.6,5.30258266]
[1770630382656,3.788,2042.6,2041.6,5.30258266]
[1770630382657,5.65272266,2042.3,2041.7,5.01977544]
[1770630382855,5.65272266,2042.4,2041.7,5.01977544]
[1770630383047,0.00407527,2042.4,2041.7,5.02469348]
[1770630383253,5.65679793,2042.4,2041.7,0.00491804]
[1770630383852,5.65679793,2042.4,2041.7,5.00764568]
[1770630388257,5.65679793,2042.4,2041.7,0.00491804]
[1770630388658,5.65679793,2042.4,2041.3,2.9272454]
[1770630388953,5.65272266,2042.3,2041.2,4.42100611]
[1770630389264,5.65272266,2042.3,2041.4,4.42100611]
[1770630389652,5.65272266,2042.3,2041.4,4.42552114]
[1770630392363,5.65272266,2042.3,2041.6,4.5210443]
[1770630393569,5.65272266,2042.3,2041.8,4.48904043]
[1770630393865,5.65272266,2042.3,2041.7,0.2451]
[1770630394268,5.65272266,2042.3,2041.4,0.00451503]
[1770630394467,5.65272266,2042.2,2041.4,0.00451503]
[1770630396162,5.65272266,2042.2,2041.4,4.58090242]
[1770630397567,5.65272266,2042.2,2041.4,0.00451503]
[1770630400872,5.65272266,2042.2,2041.4,4.37067414]
[1770630403869,5.65272266,2042.2,2041.5,0.24513]
[1770630404074,5.65272266,2042.2,2041.6,4.28786902]
[1770630404771,0.00407527,2042.4,2041.8,4.26093566]
[1770630404772,5.65679793,2042.4,2041.8,4.26093566]
[1770630406374,0.00407527,2042.4,2042.1,4.11468843]
[1770630406574,5.38732346,2042.7,2042.1,4.11468843]
[1770630407077,5.38732346,2042.5,2042.1,4.11468843]
[1770630407478,5.3926761,2042.5,2042.1,4.11468843]
[1770630408067,0.00535264,2042.5,2042.1,4.11468843]
[1770630408274,5.38732346,2042.7,2042.1,4.11468843]
[1770630408474,5.38732346,2042.7,2042.2,4.03641383]
[1770630409270,5.38732346,2042.6,2041.8,2.91989115]
[1770630409580,5.38732346,2042.6,2041.5,6.92667546]
[1770630410482,5.38732346,2042.6,2041.5,2.91989115]
[1770630410677,5.38732346,2042.6,2041.4,3.16953618]
[1770630411867,5.38732346,2042.6,2041.5,3.87065326]
[1770630412780,5.38732346,2042.5,2041.5,3.87065326]
[1770630413186,5.38732346,2042.5,2041.6,4.06066377]
[1770630413484,5.38732346,2042.4,2041.6,0.24512]
[1770630413878,5.38732346,2042.4,2041.4,0.00451503]
[1770630417183,5.39091434,2042.7,2042.1,0.24506]
[1770630417383,5.38732346,2042.6,2041.7,2.91989115]
[1770630417583,5.38732346,2042.6,2041.6,2.91989115]
[1770630418482,5.38732346,2042.6,2041.5,6.85526215]
[1770630419987,5.38732346,2042.6,2041.6,3.14753138]
[1770630421387,5.38732346,2042.6,2041.5,0.24512]
[1770630421583,5.38732346,2042.4,2041.4,0.00451503]
[1770630421790,5.38732346,2042.2,2041.0,2.91989115]
[1770630422186,5.38732346,2042.2,2040.9,6.29069533]
[1770630422892,5.38732346,2042.1,2040.9,0.00509596]
[1770630423086,5.38732346,2041.9,2040.9,0.00509596]
[1770630423286,5.38732346,2041.7,2040.9,0.00509596]
[1770630425392,5.38732346,2041.7,2040.9,2.3756355]
[1770630429193,5.38732346,2041.7,2040.9,0.25029596]
[1770630429397,5.38732346,2041.7,2040.9,0.00509596]
[1770630434687,5.38732346,2041.6,2041.0,2.21819876]
[1770630434893,9.17532346,2041.7,2041.0,2.21819876]
[1770630436800,5.38732346,2041.7,2041.3,1.91908276]
[1770630437799,5.38732346,2041.7,2040.9,0.00509596]
[1770630442798,4.94379924,2041.5,2040.9,0.00509596]
[1770630443499,4.94379924,2041.8,2041.1,2.26862752]
[1770630444493,4.94379924,2041.8,2041.2,2.51107626]
[1770630445204,4.94379924,2042.0,2041.4,2.52593931]
[1770630445407,4.94379924,2042.0,2041.4,0.24514]
[1770630447706,4.94379924,2042.0,2041.4,2.4747468]
[1770630447901,4.94379924,2042.0,2041.4,0.24514]
[1770630450112,4.94379924,2042.0,2040.9,2.92498711]
[1770630450308,4.94379924,2041.9,2040.9,2.92498711]
[1770630451408,4.94379924,2041.9,2040.9,5.3209608]
[1770630451601,4.94379924,2041.9,2040.9,5.5661608]
[1770630452803,4.94379924,2041.9,2041.1,2.63727356]
[1770630454001,4.94379924,2041.9,2041.1,0.24518]
[1770630454204,4.94379924,2041.9,2040.9,2.92498711]
[1770630454406,4.94379924,2041.7,2040.6,2.91989115]
[1770630454708,4.94379924,2041.5,2040.5,5.47813422]
[1770630454909,4.94379924,2041.5,2040.8,5.23747652]
[1770630455109,4.94379924,2041.5,2040.9,5.23747652]
[1770630455404,4.94379924,2041.5,2040.9,5.24105253]
[1770630455605,4.94379924,2041.5,2040.6,2.91989115]
[1770630455806,4.94379924,2041.5,2040.5,2.91989115]
[1770630456912,4.94379924,2041.5,2040.5,2.92364396]
[1770630457204,4.94379924,2041.5,2040.5,0.00375281]
[1770630460213,4.94379924,2041.5,2040.5,2.03853155]
[1770630460415,4.94379924,2041.5,2040.6,2.28001874]
[1770630460711,4.94379924,2041.5,2040.8,2.27998874]
[1770630463112,4.94379924,2041.5,2040.9,1.9652413]
[1770630464217,4.94379924,2041.5,2040.8,3.17517525]
[1770630464713,4.94379924,2041.5,2040.8,5.11148088]
[1770630466317,4.94379924,2041.5,2040.8,3.17517525]
[1770630466517,4.94379924,2041.5,2040.8,0.24521]
[1770630471320,5.03912995,2041.4,2040.6,2.92996525]
[1770630471624,5.03912995,2041.4,2040.5,0.00375281]
[1770630472019,5.03912995,2041.4,2040.6,4.65487866]
[1770630472219,5.03912995,2041.4,2040.6,4.90011866]
[1770630472816,5.03912995,2041.4,2040.8,0.24521]
[1770630473018,5.03912995,2041.4,2040.9,4.63345326]
[1770630473719,4.95706824,2041.4,2040.9,4.63345326]
[1770630474520,4.95706824,2041.4,2041.0,5.10338003]
[1770630477925,5.03912995,2041.8,2041.0,5.10338003]
[1770630478624,5.03912995,2041.8,2041.0,0.24519]
[1770630478828,5.03912995,2041.8,2040.5,7.32806027]
[1770630478829,5.03912995,2041.6,2040.6,4.70638937]
[1770630480929,5.03912995,2041.6,2040.8,4.57380528]
[1770630483232,5.03912995,2041.6,2040.7,4.70620008]
[1770630483833,5.03912995,2041.4,2040.7,4.70620008]
[1770630484922,5.03912995,2041.4,2040.8,4.39355272]
[1770630485229,5.03912995,2041.7,2041.0,4.39355272]
[1770630485427,5.03912995,2041.6,2041.0,4.39355272]
[1770630487134,5.03912995,2041.7,2041.2,4.26914922]
[1770630489239,5.03912995,2042.0,2041.5,4.32332551]
[1770630490531,5.03912995,2042.0,2041.1,4.38347377]
[1770630490725,5.03912995,2041.9,2040.9,4.26128875]
[1770630490929,5.03912995,2041.9,2041.2,4.01552557]
[1770630491327,5.03912995,2041.9,2041.4,3.95485908]
[1770630491733,5.03912995,2042.2,2041.6,3.98013315]
[1770630492439,5.03912995,2042.2,2041.7,4.16512708]
[1770630493237,5.03912995,2042.6,2041.7,4.16512708]
[1770630495235,5.03912995,2042.6,2041.7,3.94000566]
[1770630501746,5.03912995,2042.6,2041.3,7.6792054]
[1770630501956,3.93105775,2042.5,2041.3,3.29573163]
[1770630502347,3.93105775,2042.3,2041.3,3.29573163]
[1770630507452,3.93105775,2042.3,2041.5,3.02504579]
[1770630507656,3.93105775,2042.3,2041.7,3.02504579]
[1770630508257,3.93105775,2042.4,2041.9,2.97085884]
[1770630510158,3.93105775,2042.4,2041.8,0.24509]
[1770630510359,3.93105775,2042.4,2041.8,3.02949087]
[1770630513761,3.93105775,2042.5,2041.8,3.02949087]
[1770630514357,3.93464863,2042.7,2042.3,2.60428353]
[1770630514660,3.93464863,2042.7,2042.3,0.0044579]
[1770630514862,3.93464863,2042.7,2042.2,0.24504]
[1770630515862,3.93464863,2042.7,2042.2,0.25027938]
[1770630516263,3.93464863,2042.7,2041.9,2.6084052]
[1770630516562,3.93464863,2042.7,2042.2,0.24504]
[1770630517155,3.93464863,2042.7,2042.2,0.25064713]
[1770630517759,3.93464863,2042.7,2042.2,0.00560713]
[1770630518062,3.93464863,2042.7,2041.7,7.39694608]
[1770630518262,9.70979784,2042.7,2041.7,0.2451]
[1770630518463,3.93105775,2042.5,2041.7,0.2451]
[1770630519065,3.93105775,2042.5,2041.7,0.24903277]
[1770630519469,3.93105775,2042.5,2041.7,2.9241614]
[1770630521262,3.93105775,2042.5,2042.0,2.57745949]
[1770630522363,0.00359088,2042.7,2042.4,2.52482622]
[1770630525266,3.33439586,2042.7,2042.3,0.24503]
[1770630525469,0.00359088,2042.7,2042.3,2.60652258]
[1770630525967,3.33439586,2042.7,2042.3,0.24503]
[1770630526564,3.33439586,2042.7,2042.3,2.57128584]
[1770630526967,0.00359088,2042.7,2042.3,2.57128584]
[1770630536981,3.33439586,2042.7,2042.0,4.86926758]
[1770630537281,3.33439586,2042.7,2042.0,1.94322102]
[1770630538286,3.33439586,2042.7,2042.1,0.24506]
[1770630541277,3.33439586,2042.7,2041.7,4.75955363]
[1770630541481,3.33439586,2042.7,2041.7,2.93415607]
[1770630544078,3.33439586,2042.7,2041.7,4.57626894]
[1770630544883,3.33439586,2042.7,2041.8,1.64156995]
[1770630545277,3.33439586,2042.7,2041.7,4.53931468]
[1770630545786,3.33439586,2042.7,2041.8,1.65776953]
[1770630549488,3.33439586,2042.7,2041.7,4.45542438]
[1770630549687,3.33080498,2042.6,2041.7,1.52520108]
[1770630550290,3.33080498,2042.6,2041.7,0.00393277]
[1770630551089,3.33080498,2042.4,2041.7,0.00393277]
[1770630553291,3.33080498,2042.3,2041.3,1.42636882]
[1770630553792,3.33080498,2042.2,2041.1,4.56497913]
[1770630553995,3.33080498,2042.1,2041.1,1.63475583]
[1770630554198,3.33080498,2042.1,2041.1,1.63863281]
[1770630554390,3.33080498,2041.9,2041.1,1.63863281]
[1770630556494,3.33080498,2041.9,2041.1,0.00387698]
[1770630558089,3.33080498,2041.9,2041.1,1.20315313]
[1770630558293,3.33080498,2041.9,2041.1,0.00387698]
[1770630558494,3.33080498,2041.9,2040.7,4.11454318]
[1770630558800,3.33080498,2041.9,2040.7,1.18431988]
[1770630559503,3.33080498,2041.9,2040.7,1.18885791]
[1770630559702,3.33080498,2041.9,2040.9,1.14763757]
[1770630560590,3.33080498,2041.9,2041.1,1.11618374]
[1770630561400,3.33080498,2041.9,2041.0,1.32913543]
[1770630561798,3.33080498,2041.9,2040.7,0.00453803]
[1770630562395,2.92758797,2041.7,2040.7,0.00453803]
[1770630565002,2.92758797,2041.7,2040.7,0.95889915]
[1770630565200,2.92758797,2041.7,2040.9,0.92387275]
[1770630565794,2.92758797,2041.7,2041.1,0.92650846]
[1770630566200,2.92758797,2041.7,2041.3,0.8962632]
[1770630567602,2.92758797,2041.9,2041.3,0.8962632]
[1770630567797,2.92758797,2041.9,2041.5,0.86837562]
[1770630567997,2.92758797,2041.9,2041.4,1.11351562]
[1770630568604,2.92758797,2041.9,2040.9,3.1754233]
[1770630568804,2.92758797,2041.9,2041.1,0.24518]
[1770630572103,2.92758797,2041.9,2040.7,2.93476133]
[1770630572308,2.92758797,2041.9,2040.7,0.73970355]
[1770630573508,2.92758797,2041.9,2040.8,0.24521]
[1770630573708,2.92758797,2041.9,2040.8,0.95111542]
[1770630574012,2.92758797,2041.9,2040.7,0.00453803]
[1770630574013,2.92758797,2041.9,2041.0,0.24519]
[1770630574212,2.92758797,2041.9,2041.1,0.71386589]
[1770630574413,2.92758797,2041.9,2041.0,0.93067008]
[1770630574609,2.92758797,2041.9,2041.0,0.24519]
[1770630574819,2.92758797,2041.9,2040.9,0.68548008]
[1770630574820,2.92758797,2041.7,2040.7,0.00453803]
[1770630576005,2.92758797,2041.7,2041.0,0.24519]
[1770630576212,2.92758797,2041.7,2041.1,0.62255929]
[1770630577911,2.92758797,2041.9,2041.3,0.59213906]
[1770630578113,2.92758797,2042.1,2041.4,0.59213906]
[1770630578817,2.92758797,2042.1,2041.5,0.56462863]
[1770630579422,2.92758797,2042.1,2041.6,0.24512]
[1770630579622,2.92758797,2042.1,2041.7,0.53670336]
[1770630579821,2.92758797,2042.3,2041.7,0.53670336]
[1770630580920,2.92758797,2042.3,2041.7,0.50799967]
[1770630581623,2.92758797,2042.3,2041.8,0.24509]
[1770630581824,2.92758797,2042.3,2041.9,0.48112328]
[1770630582826,2.92758797,2042.5,2041.9,0.48112328]
[1770630584328,2.93117885,2042.7,2042.1,0.46939175]
[1770630586022,2.93117885,2042.7,2042.0,0.24507]
[1770630586423,2.93117885,2042.7,2041.5,4.38347377]
[1770630586727,2.46200361,2042.4,2041.4,0.64288936]
[1770630586928,2.46200361,2042.4,2041.5,0.39775936]
[1770630587525,2.46200361,2042.4,2041.4,0.24513]
[1770630587721,2.46200361,2042.4,2041.5,0.3856906]
[1770630590824,2.46200361,2042.4,2041.6,0.52784053]
[1770630591328,2.46200361,2042.4,2041.6,0.24512]
[1770630594723,2.46200361,2042.4,2041.6,0.40402108]
[1770630595027,2.46200361,2042.4,2041.7,0.15890108]
[1770630596930,2.46200361,2042.4,2041.6,0.24512]
[1770630596931,2.46200361,2042.4,2041.6,0.35830615]
[1770630597724,2.46200361,2042.4,2041.6,0.24512]
[1770630601832,2.46200361,2042.4,2041.1,3.1891739]
[1770630601833,2.46200361,2042.3,2041.1,3.1891739]
[1770630602034,5.36524262,2042.3,2041.0,2.9302233]
[1770630602225,2.46200361,2042.1,2041.0,2.9302233]
[1770630602426,2.46200361,2041.8,2040.7,2.93476133]
[1770630602734,2.46200361,2041.4,2040.3,3.16638467]
[1770630603035,2.46200361,2041.3,2040.3,3.16638467]
[1770630603235,2.46200361,2041.3,2040.3,0.23616137]
[1770630603735,2.46200361,2041.3,2040.3,0.23994626]
[1770630604134,2.46200361,2041.3,2040.6,0.24524]
[1770630604340,2.46200361,2041.6,2040.7,0.19529881]
[1770630604539,2.46200361,2041.6,2040.5,9.15859211]
[1770630604837,2.46200361,2041.6,2040.6,0.19462078]
[1770630605534,2.46200361,2041.6,2040.8,0.24521]
[1770630606635,2.46200361,2041.6,2040.9,0.11513662]
[1770630607936,2.46200361,2041.6,2041.0,0.24519]
[1770630608131,2.46200361,2041.6,2041.1,0.09798336]
[1770630609733,2.46200361,2041.6,2041.2,0.30431913]
[1770630613134,2.46200361,2041.6,2041.2,0.24516]
[1770630613334,2.46200361,2041.6,2040.7,0.24522]
[1770630614737,2.46200361,2041.4,2040.7,0.24522]
[1770630615740,2.46200361,2041.4,2040.3,0.00378489]
[1770630616142,2.14537036,2041.3,2040.3,0.00378489]
[1770630616338,2.14537036,2041.2,2040.2,0.24528]
[1770630617440,2.1516654,2041.2,2040.2,0.25130739]
[1770630618238,2.1516654,2041.2,2040.2,2.58640894]
[1770630620237,2.21636615,2041.0,2040.2,2.58640894]
[1770630624738,2.21636615,2041.0,2040.2,0.25130739]
[1770630624944,2.21636615,2041.0,2040.2,0.00602739]
[1770630625151,2.21636615,2041.0,2039.8,2.33510155]
[1770630626549,2.21636615,2041.0,2039.8,2.62017627]
[1770630628448,2.21636615,2041.0,2039.9,2.58042155]
[1770630629547,2.21636615,2041.0,2039.8,0.28507472]
[1770630629744,2.21636615,2040.9,2039.8,2.33510155]
[1770630630450,2.21636615,2040.9,2039.8,2.86343892]
[1770630630845,2.21636615,2040.9,2039.8,0.52833737]
[1770630631249,2.21636615,2040.8,2039.8,0.52833737]
[1770630631548,2.21636615,2040.7,2039.8,0.24533]
[1770630632850,2.21636615,2040.7,2039.8,2.58043155]
[1770630633350,2.21636615,2040.7,2039.8,0.24533]
[1770630635548,2.21636615,2040.7,2039.8,2.58043155]
[1770630637055,2.21636615,2040.0,2039.0,2.33510155]
[1770630637351,2.21636615,2040.0,2039.2,2.33510155]
[1770630637547,2.21636615,2039.9,2039.2,2.33510155]
[1770630638154,2.21636615,2039.9,2039.4,2.33510155]
[1770630638453,2.21636615,2039.9,2039.3,2.58049155]
[1770630638956,2.21636615,2039.9,2039.3,0.24539]
[1770630640249,2.21636615,2039.9,2039.3,0.52639589]
[1770630640652,2.21636615,2039.9,2039.3,0.24539]
[1770630640853,2.21636615,2039.9,2038.8,2.33510155]
[1770630641051,2.21636615,2039.9,2039.0,2.33510155]
[1770630641246,2.21636615,2039.9,2039.2,2.33510155]
[1770630641656,2.21636615,2039.9,2039.1,0.24542]
[1770630642752,2.21636615,2039.9,2038.8,0.28303133]
[1770630642951,2.21636615,2039.9,2038.7,2.33510155]
[1770630643348,2.21636615,2039.9,2038.8,0.24545]
[1770630643657,2.21636615,2039.9,2038.8,2.58055155]
[1770630643950,2.21636615,2039.9,2038.8,0.24545]
[1770630644149,2.21636615,2039.9,2038.8,2.58055155]
[1770630644955,2.21636615,2039.9,2038.8,2.86144764]
[1770630645357,2.21636615,2039.9,2039.1,2.18390261]
[1770630646454,2.21636615,2039.9,2039.2,0.24541]
[1770630646659,2.21636615,2039.9,2039.3,2.18390261]
[1770630647957,2.21636615,2039.9,2039.2,2.42931261]
[1770630648352,2.21636615,2039.9,2039.2,0.24541]
[1770630649761,2.21636615,2039.9,2039.2,2.42931261]
[1770630651256,2.21636615,2039.9,2039.2,0.24541]
[1770630652062,2.12483985,2039.7,2038.6,2.42937261]
[1770630652262,2.12857689,2039.7,2038.6,0.24547]
[1770630652462,2.12857689,2039.7,2038.6,2.42937261]
[1770630652965,2.12483985,2039.3,2038.2,0.24553]
[1770630653162,2.12483985,2039.3,2038.2,2.7185481]
[1770630654260,2.12483985,2039.3,2038.2,0.53464549]
[1770630654862,2.12483985,2039.0,2037.9,2.18390261]
[1770630655256,2.12483985,2039.0,2038.1,2.18390261]
[1770630655461,2.12483985,2038.8,2038.1,2.18390261]
[1770630655860,2.12483985,2038.8,2038.0,0.24555]
[1770630656363,2.12483985,2038.8,2037.7,2.18390261]
[1770630656667,2.12483985,2038.7,2037.5,2.42951261]
[1770630657270,2.12483985,2038.7,2037.7,0.24559]
[1770630658359,2.12483985,2038.7,2037.7,2.42949261]
[1770630659459,2.12483985,2038.7,2037.7,0.24559]
[1770630659766,2.12483985,2038.7,2037.7,2.42949261]
[1770630659963,2.12483985,2038.7,2037.7,0.24559]
[1770630660360,2.12483985,2038.7,2037.2,6.04296]
[1770630660361,2.12483985,2038.7,2037.3,2.18390261]
[1770630660562,2.12483985,2038.5,2037.2,2.42955261]
[1770630660773,2.12483985,2038.3,2037.0,2.18390261]
[1770630661070,2.12483985,2038.3,2037.2,2.18390261]
[1770630661264,2.12483985,2038.1,2037.4,2.18390261]
[1770630661459,2.13069372,2038.1,2037.4,2.18390261]
[1770630661866,2.13069372,2038.1,2037.0,2.18390261]
[1770630662467,2.13069372,2038.1,2037.2,2.18390261]
[1770630663471,2.13069372,2038.1,2037.1,2.42956261]
[1770630664071,2.13069372,2038.1,2037.1,0.24566]
[1770630664575,2.13069372,2038.1,2037.1,2.42956261]
[1770630666876,2.12483985,2037.9,2037.1,2.42956261]
[1770630669375,2.12483985,2038.0,2037.6,2.18390261]
[1770630669677,2.12483985,2038.0,2037.5,2.42950261]
[1770630670075,2.12483985,2038.0,2037.5,0.2456]
[1770630670469,2.12483985,2038.0,2037.1,2.18390261]
[1770630672372,2.12483985,2038.0,2037.0,0.24567]
[1770630672777,2.12483985,2038.0,2036.6,2.18390261]
[1770630675180,2.12483985,2038.0,2035.9,6.04666]
[1770630675181,2.32112241,2037.9,2035.9,6.04666]
[1770630675375,2.07556241,2037.6,2036.0,2.08625468]
[1770630675574,2.07556241,2037.4,2036.0,2.33204468]
[1770630675775,31.736,2037.5,2036.0,2.33204468]
[1770630675776,2.07556241,2037.2,2036.0,2.33204468]
[1770630676482,2.07556241,2037.2,2036.3,2.08625468]
[1770630676675,2.07556241,2037.2,2036.2,0.24577]
[1770630680678,2.07556241,2037.2,2036.2,2.2875903]
[1770630680878,2.07556241,2037.2,2036.5,2.0418203]
[1770630681085,40.8,2037.3,2036.9,2.0418203]
[1770630681282,2.17640743,2037.4,2036.9,2.0418203]
[1770630682281,2.17640743,2037.4,2036.8,0.24569]
[1770630682688,2.17640743,2037.4,2036.8,2.2875103]
[1770630683083,2.17640743,2037.6,2036.8,2.2875103]
[1770630683882,2.17640743,2037.6,2036.2,8.95666406]
[1770630683883,2.17640743,2037.6,2036.3,2.0418203]
[1770630684082,2.17640743,2037.6,2036.2,0.24576]
[1770630684383,2.17640743,2037.5,2036.2,0.24576]
[1770630685282,2.17640743,2037.4,2036.2,2.2875803]
[1770630685990,2.17640743,2037.4,2036.5,2.0418203]
[1770630686188,43.67920938,2037.7,2036.7,2.0418203]
[1770630686189,2.17640743,2037.6,2036.7,2.0418203]
[1770630687486,2.17640743,2037.6,2036.8,2.2875103]
[1770630689889,2.17640743,2037.6,2036.8,0.24569]
[1770630690088,2.17640743,2037.6,2036.8,2.2875103]
[1770630690881,2.17640743,2037.8,2037.0,6.04351]
[1770630691180,2.17640743,2037.8,2036.9,2.0418203]
[1770630691388,2.17640743,2037.6,2036.7,2.0418203]
[1770630695390,2.17640743,2037.6,2036.5,2.0418203]
[1770630695992,2.17640743,2037.6,2036.7,2.0418203]
[1770630696895,2.17640743,2037.6,2036.6,2.2875403]
[1770630701398,2.17640743,2037.4,2036.6,0.24572]
[1770630701601,2.17640743,2037.4,2036.3,2.0418203]
[1770630701798,2.17640743,2037.2,2036.3,2.0418203]